fUSD/lending_fUSD_20250202
["ID","MTS","AMOUNT","RATE_DAILY","PERIOD"]
[351330679,1738516257671,-151.0,0.00011095,2]
[351330680,1738516257681,-151.0,0.00011095,2]
[351330681,1738516257690,-151.0,0.00011095,2]
[351330682,1738516257699,-151.0,0.00011095,2]
[351330683,1738516257711,-151.0,0.00011095,2]
[351330684,1738516257719,-151.0,0.00011095,2]
[351330685,1738516257729,-151.0,0.00011095,2]
[351330686,1738516257737,-5321.51,0.00011095,2]
[351330687,1738516257885,-151.0,0.00011095,2]
[351330688,1738516257895,-500.0,0.00011095,2]
[351330689,1738516257905,-500.0,0.00011095,2]
[351330690,1738516257914,-151.0,0.00011095,2]
[351330691,1738516257925,-151.0,0.00011095,2]
[351330692,1738516257939,-151.0,0.00011095,2]
[351330693,1738516257949,-151.0,0.00011095,2]
[351330694,1738516257962,-151.0,0.00011095,2]
[351330695,1738516257972,-151.0,0.00011095,2]
[351330696,1738516257983,-151.0,0.00011095,2]
[351330697,1738516257995,-583.29,0.00011095,2]
[351330698,1738516258005,-2286.17,0.00011095,2]
[351330699,1738516258020,-500.0,0.00011095,2]
[351330700,1738516258032,-3334.13,0.00011095,2]
[351330701,1738516258043,-151.0,0.00011095,2]
[351330702,1738516258053,-709.12,0.00011095,2]
[351330703,1738516258063,-151.0,0.00011095,2]
[351330704,1738516258074,-538.86,0.00011095,2]
[351330705,1738516258084,-151.0,0.00011095,2]
[351330706,1738516258095,-788.53,0.00011095,2]
[351330707,1738516258107,-151.0,0.00011095,2]
[351330708,1738516258117,-151.0,0.00011095,2]
[351330709,1738516258127,-500.0,0.00011095,2]
[351330710,1738516258137,-151.0,0.00011095,2]
[351330711,1738516258147,-151.0,0.00011095,2]
[351330712,1738516258157,-151.0,0.00011095,2]
[351330713,1738516258167,-151.0,0.00011095,2]
[351330714,1738516258176,-151.0,0.00011095,2]
[351330715,1738516258186,-151.0,0.00011095,2]
[351330716,1738516258195,-3213.09,0.00011095,2]
[351330717,1738516258202,-500.0,0.00011095,2]
[351330718,1738516258212,-500.0,0.00011095,2]
[351330719,1738516258221,-500.0,0.00011095,2]
[351330720,1738516258230,-500.0,0.00011095,2]
[351330721,1738516258236,-500.0,0.00011095,2]
[351330722,1738516258245,-500.0,0.00011095,2]
[351330723,1738516258253,-500.0,0.00011095,2]
[351330724,1738516258262,-500.0,0.00011095,2]
[351330725,1738516258271,-472.743312,0.00011095,2]
[351330726,1738516258279,-500.0,0.00011095,2]
[351330727,1738516258286,-500.0,0.00011095,2]
[351330728,1738516258296,-500.0,0.00011095,2]
[351330729,1738516258306,-500.0,0.00011095,2]
[351330730,1738516258316,-3347.0,0.00011095,2]
[351330731,1738516258325,-500.0,0.00011095,2]
[351330732,1738516258335,-500.0,0.00011095,2]
[351330733,1738516258345,-500.0,0.00011095,2]
[351330734,1738516258354,-1791.3,0.00011095,2]
[351330735,1738516258363,-1865.45,0.00011095,2]
[351330736,1738516258372,-4126.51,0.00011095,2]
[351330737,1738516258381,-500.0,0.00011095,2]
[351330738,1738516258390,-500.0,0.00011095,2]
[351330739,1738516258399,-599.68879,0.00011095,2]
[351330740,1738516258408,-1290.25,0.00011095,2]
[351330741,1738516258416,-500.0,0.00011095,2]
[351330742,1738516258424,-534.57,0.00011095,2]
[351330743,1738516258433,-500.0,0.00011095,2]
[351330744,1738516258441,-500.0,0.00011095,2]
[351330745,1738516258451,-2895.12,0.00011095,2]
[351330746,1738516258462,-4106.86,0.00011095,2]
[351330747,1738516258470,-1698.65,0.00011095,2]
[351330748,1738516258480,-500.0,0.00011095,2]
[351330749,1738516258489,-500.0,0.00011095,2]
[351330750,1738516258499,-500.0,0.00011095,2]
[351330751,1738516258509,-448.017146,0.00011095,2]
[351330752,1738516258518,-500.0,0.00011095,2]
[351330753,1738516258528,-855.64,0.00011095,2]
[351330754,1738516258538,-500.0,0.00011095,2]
[351330755,1738516258547,-500.0,0.00011095,2]
[351330756,1738516258554,-500.0,0.00011095,2]
[351330757,1738516258562,-7948.23,0.00011095,2]
[351330758,1738516258570,-3699.44,0.00011095,2]
[351330759,1738516258578,-1134.77,0.00011095,2]
[351330760,1738516258585,-1388.83,0.00011095,2]
[351330761,1738516258593,-511.48038569,0.00011095,2]
[351330762,1738516258602,-1267.53,0.00011095,2]
[351330763,1738516258610,-700.239809,0.00011095,2]
[351330764,1738516258618,-1281.92,0.00011095,2]
[351330765,1738516258626,-1852.27,0.00011095,2]
[351330766,1738516258634,-772.18,0.00011095,2]
[351330767,1738516258641,-500.0,0.00011095,2]
[351330768,1738516258650,-500.0,0.00011095,2]
[351330769,1738516258657,-22309.31,0.00011095,2]
[351330770,1738516258663,-10331.27,0.00011095,2]
[351330771,1738516258671,-3740.63,0.00011095,2]
[351330772,1738516258680,-500.0,0.00011095,2]
[351330773,1738516258687,-2548.06,0.00011095,2]
[351330774,1738516258697,-2430.52,0.00011095,2]
[351330775,1738516258706,-757.34,0.00011095,2]
[351330776,1738516258721,-500.0,0.00011095,2]
[351330777,1738516258731,-500.0,0.00011095,2]
[351330778,1738516258742,-5491.14,0.00011095,2]
[351330779,1738516258752,-500.0,0.00011095,2]
[351330780,1738516258762,-3483.73,0.00011095,2]
[351330781,1738516258772,-500.0,0.00011095,2]
[351330782,1738516258782,-3375.4,0.00011095,2]
[351330783,1738516258792,-715.854792,0.00011095,2]
[351330784,1738516258803,-1965.31,0.00011095,2]
[351330785,1738516258814,-500.0,0.00011095,2]
[351330786,1738516258824,-573.22,0.00011095,2]
[351330787,1738516258835,-500.0,0.00011095,2]
[351330788,1738516258845,-484.05109103,0.00011095,2]
[351330789,1738516258855,-499.671825,0.00011095,2]
[351330790,1738516258865,-5575.16,0.00011095,2]
[351330791,1738516258875,-500.0,0.00011095,2]
[351330792,1738516258885,-3861.12,0.00011095,2]
[351330793,1738516258895,-500.0,0.00011095,2]
[351330794,1738516258905,-6565.29,0.00011095,2]
[351330795,1738516258914,-500.0,0.00011095,2]
[351330796,1738516258924,-500.0,0.00011095,2]
[351330797,1738516258934,-500.0,0.00011095,2]
[351330798,1738516258943,-2279.37,0.00011095,2]
[351330799,1738516258953,-1098.28,0.00011095,2]
[351330800,1738516258967,-500.0,0.00011095,2]
[351330801,1738516258976,-500.0,0.00011095,2]
[351330802,1738516258986,-5388.59,0.00011095,2]
[351330803,1738516259000,-500.0,0.00011095,2]
[351330804,1738516259012,-1360.61,0.00011095,2]
[351330805,1738516259022,-500.0,0.00011095,2]
[351330806,1738516259033,-500.0,0.00011095,2]
[351330807,1738516259044,-500.0,0.00011095,2]
[351330808,1738516259054,-335.04086117,0.00011095,2]
[351330809,1738516259064,-658.158992,0.00011095,2]
[351330810,1738516259073,-500.0,0.00011095,2]
[351330811,1738516259084,-469.57071,0.00011095,2]
[351330812,1738516259094,-500.0,0.00011095,2]
[351330813,1738516259105,-2722.34,0.00011095,2]
[351330814,1738516259116,-864.3,0.00011095,2]
[351330815,1738516259126,-500.0,0.00011095,2]
[351330816,1738516259135,-500.0,0.00011095,2]
[351330817,1738516259146,-3044.13,0.00011095,2]
[351330818,1738516259156,-500.0,0.00011095,2]
[351330819,1738516259165,-729.59,0.00011095,2]
[351330820,1738516259175,-500.0,0.00011095,2]
[351330821,1738516259184,-500.0,0.00011095,2]
[351330822,1738516259194,-3192.39,0.00011095,2]
[351330823,1738516259203,-1342.13,0.00011095,2]
[351330824,1738516259216,-3427.67,0.00011095,2]
[351330825,1738516259226,-2027.55,0.00011095,2]
[351330826,1738516259236,-500.0,0.00011095,2]
[351330827,1738516259245,-500.0,0.00011095,2]
[351330828,1738516259256,-500.0,0.00011095,2]
[351330829,1738516259265,-500.0,0.00011095,2]
[351330830,1738516259276,-4252.01,0.00011095,2]
[351330831,1738516259286,-2583.64,0.00011095,2]
[351330832,1738516259296,-10284.26,0.00011095,2]
[351330833,1738516259307,-2652.56,0.00011095,2]
[351330834,1738516259316,-555.992645,0.00011095,2]
[351330835,1738516259326,-500.0,0.00011095,2]
[351330836,1738516259336,-12127.67,0.00011095,2]
[351330837,1738516259345,-500.0,0.00011095,2]
[351330838,1738516259355,-1427.7,0.00011095,2]
[351330839,1738516259364,-633.56,0.00011095,2]
[351330840,1738516259374,-576.949377,0.00011095,2]
[351330841,1738516259383,-500.0,0.00011095,2]
[351330842,1738516259393,-500.0,0.00011095,2]
[351330843,1738516259403,-7300.52,0.00011095,2]
[351330844,1738516259413,-500.0,0.00011095,2]
[351330845,1738516259424,-4063.4,0.00011095,2]
[351330846,1738516259434,-6290.38,0.00011095,2]
[351330847,1738516259444,-824.29,0.00011095,2]
[351330848,1738516259454,-1460.02,0.00011095,2]
[351330849,1738516259466,-500.0,0.00011095,2]
[351330850,1738516259476,-500.0,0.00011095,2]
[351330851,1738516259486,-500.0,0.00011095,2]
[351330852,1738516259496,-500.0,0.00011095,2]
[351330853,1738516259506,-500.0,0.00011095,2]
[351330854,1738516259516,-2235.5,0.00011095,2]
[351330855,1738516259526,-1908.31,0.00011095,2]
[351330856,1738516259536,-7227.41,0.00011095,2]
[351330857,1738516259545,-500.0,0.00011095,2]
[351330858,1738516259555,-500.0,0.00011095,2]
[351330859,1738516259566,-6243.33,0.00011095,2]
[351330860,1738516259576,-2827.59,0.00011095,2]
[351330861,1738516259586,-500.0,0.00011095,2]
[351330862,1738516259596,-571.56294,0.00011095,2]
[351330863,1738516259606,-911.77,0.00011095,2]
[351330864,1738516259616,-1653.28,0.00011095,2]
[351330865,1738516259627,-500.0,0.00011095,2]
[351330866,1738516259637,-500.0,0.00011095,2]
[351330867,1738516259647,-7297.29,0.00011095,2]
[351330868,1738516259658,-512.14024391,0.00011095,2]
[351330869,1738516259667,-840.74,0.00011095,2]
[351330870,1738516259678,-500.0,0.00011095,2]
[351330871,1738516259688,-500.0,0.00011095,2]
[351330872,1738516259698,-500.0,0.00011095,2]
[351330873,1738516259708,-500.0,0.00011095,2]
[351330874,1738516259719,-5332.32,0.00011095,2]
[351330875,1738516259729,-903.79,0.00011095,2]
[351330876,1738516259739,-1169.62,0.00011095,2]
[351330877,1738516259749,-3045.71,0.00011095,2]
[351330878,1738516259759,-500.0,0.00011095,2]
[351330879,1738516259769,-2256.46,0.00011095,2]
[351330880,1738516259778,-500.0,0.00011095,2]
[351330881,1738516259788,-1943.86,0.00011095,2]
[351330882,1738516259799,-500.0,0.00011095,2]
[351330883,1738516259808,-2045.5,0.00011095,2]
[351330884,1738516259817,-454.142217,0.00011095,2]
[351330885,1738516259826,-1318.91,0.00011095,2]
[351330886,1738516259836,-522.1504203,0.00011095,2]
[351330887,1738516259846,-500.0,0.00011095,2]
[351330888,1738516259856,-500.0,0.00011095,2]
[351330889,1738516259867,-554.542878,0.00011095,2]
[351330890,1738516259875,-500.0,0.00011095,2]
[351330891,1738516259886,-500.0,0.00011095,2]
[351330892,1738516259895,-2414.38,0.00011095,2]
[351330893,1738516259905,-719.96,0.00011095,2]
[351330894,1738516259914,-1787.61,0.00011095,2]
[351330895,1738516259923,-500.0,0.00011095,2]
[351330896,1738516260081,-500.0,0.00011095,2]
[351330897,1738516260092,-1536.13,0.00011095,2]
[351330898,1738516260104,-618.23,0.00011095,2]
[351330899,1738516260115,-1518.86,0.00011095,2]
[351330900,1738516260126,-628.12,0.00011095,2]
[351330901,1738516260136,-500.0,0.00011095,2]
[351330902,1738516260146,-11569.23,0.00011095,2]
[351330903,1738516260157,-2634.47,0.00011095,2]
[351330904,1738516260167,-826.16,0.00011095,2]
[351330905,1738516260178,-500.0,0.00011095,2]
[351330906,1738516260189,-500.0,0.00011095,2]
[351330907,1738516260199,-3226.39,0.00011095,2]
[351330908,1738516260209,-5191.49,0.00011095,2]
[351330909,1738516260224,-3073.21,0.00011095,2]
[351330910,1738516260234,-6920.81,0.00011095,2]
[351330911,1738516260244,-500.0,0.00011095,2]
[351330912,1738516260254,-7847.47,0.00011095,2]
[351330913,1738516260264,-490.280531,0.00011095,2]
[351330914,1738516260273,-500.0,0.00011095,2]
[351330915,1738516260282,-500.0,0.00011095,2]
[351330916,1738516260292,-2251.09,0.00011095,2]
[351330917,1738516260302,-500.0,0.00011095,2]
[351330918,1738516260312,-614.64,0.00011095,2]
[351330919,1738516260322,-500.0,0.00011095,2]
[351330920,1738516260331,-1544.32,0.00011095,2]
[351330921,1738516260341,-708.79,0.00011095,2]
[351330922,1738516260350,-500.0,0.00011095,2]
[351330923,1738516260361,-500.0,0.00011095,2]
[351330924,1738516260371,-500.0,0.00011095,2]
[351330925,1738516260380,-2556.72,0.00011095,2]
[351330926,1738516260391,-500.0,0.00011095,2]
[351330927,1738516260402,-9826.73472084,0.00011099,2]
[351330928,1738516260414,-9826.73472076,0.00011099,2]
[351330929,1738516260424,-9826.73472076,0.00011099,2]
[351330930,1738516260434,-9826.73472076,0.00011099,2]
[351330931,1738516260444,-9826.73472076,0.00011099,2]
[351330932,1738516260454,-9826.73472076,0.00011099,2]
[351330933,1738516260471,-9826.73472076,0.00011099,2]
[351330934,1738516260482,-9826.73472076,0.00011099,2]
[351330935,1738516260492,-9826.73472076,0.00011099,2]
[351330936,1738516260503,-9826.73472076,0.00011099,2]
[351330937,1738516260513,-230.841971,0.00011099,2]
[351330938,1738516260523,-230.841971,0.00011099,2]
[351330939,1738516260533,-500.0,0.00011205,2]
[351330940,1738516260543,-500.0,0.00011231,2]
[351330941,1738516260552,-500.0,0.00011231,2]
[351330942,1738516260562,-500.0,0.00011231,2]
[351330943,1738516260572,-500.0,0.00011231,2]
[351330944,1738516260582,-500.0,0.00011231,2]
[351330945,1738516260591,-500.0,0.00011231,2]
[351330946,1738516260600,-500.0,0.00011231,2]
[351330947,1738516260609,-500.0,0.00011231,2]
[351330948,1738516260618,-500.0,0.00011231,2]
[351330949,1738516260628,-500.0,0.00011231,2]
[351330950,1738516260638,-500.0,0.00011231,2]
[351330951,1738516260648,-500.0,0.00011231,2]
[351330952,1738516260658,-500.0,0.00011231,2]
[351330953,1738516260667,-500.0,0.00011231,2]
[351330954,1738516260677,-500.0,0.00011231,2]
[351330955,1738516260687,-500.0,0.00011231,2]
[351330956,1738516260697,-500.0,0.00011231,2]
[351330957,1738516260706,-500.0,0.00011231,2]
[351330958,1738516260720,-500.0,0.00011231,2]
[351330959,1738516260730,-655.84,0.00011231,2]
[351330960,1738516260741,-500.0,0.00011231,2]
[351330961,1738516260752,-500.0,0.00011231,2]
[351330962,1738516260761,-577.60642698,0.00011231,2]
[351330963,1738516260771,-500.0,0.00011231,2]
[351330964,1738516260781,-500.0,0.00011231,2]
[351330965,1738516260790,-544.61,0.00011231,2]
[351330966,1738516260800,-500.0,0.00011231,2]
[351330967,1738516260809,-500.0,0.00011231,2]
[351330968,1738516260819,-684.7,0.00011231,2]
[351330969,1738516260829,-500.0,0.00011231,2]
[351330970,1738516260838,-500.0,0.00011231,2]
[351330971,1738516260848,-500.0,0.00011231,2]
[351330972,1738516260858,-500.0,0.00011231,2]
[351330973,1738516260867,-500.0,0.00011231,2]
[351330974,1738516260877,-1092.39,0.00011231,2]
[351330975,1738516260886,-500.0,0.00011231,2]
[351330976,1738516260896,-500.0,0.00011231,2]
[351330977,1738516260905,-654.63,0.00011231,2]
[351330978,1738516260916,-500.0,0.00011231,2]
[351330979,1738516260927,-624.83,0.00011231,2]
[351330980,1738516260937,-500.0,0.00011231,2]
[351330981,1738516260947,-500.0,0.00011231,2]
[351330982,1738516260958,-500.0,0.00011231,2]
[351330983,1738516260971,-560.19,0.00011231,2]
[351330984,1738516260981,-500.0,0.00011231,2]
[351330985,1738516260991,-500.0,0.00011231,2]
[351330986,1738516261001,-500.0,0.00011231,2]
[351330987,1738516261012,-500.0,0.00011231,2]
[351330988,1738516261023,-500.0,0.00011231,2]
[351330989,1738516261033,-500.0,0.00011231,2]
[351330990,1738516261044,-1210.49,0.00011231,2]
[351330991,1738516261056,-500.0,0.00011231,2]
[351330992,1738516261067,-555.1473342,0.00011231,2]
[351330993,1738516261079,-554.48,0.00011231,2]
[351330994,1738516261089,-500.0,0.00011231,2]
[351330995,1738516261100,-500.0,0.00011231,2]
[351330996,1738516261110,-500.0,0.00011231,2]
[351330997,1738516261119,-372.87185261,0.00011231,2]
[351330998,1738516261133,-500.0,0.00011231,2]
[351330999,1738516261145,-500.0,0.00011231,2]
[351331000,1738516261155,-500.0,0.00011231,2]
[351331001,1738516261167,-500.0,0.00011231,2]
[351331002,1738516261181,-500.0,0.00011231,2]
[351331003,1738516261201,-713.02,0.00011231,2]
[351331004,1738516261216,-500.0,0.00011231,2]
[351331005,1738516261229,-500.0,0.00011231,2]
[351331006,1738516261242,-500.0,0.00011231,2]
[351331007,1738516261254,-500.0,0.00011231,2]
[351331008,1738516261264,-1374.75,0.00011231,2]
[351331009,1738516261279,-710.67,0.00011231,2]
[351331010,1738516261292,-500.0,0.00011231,2]
[351331011,1738516261303,-500.0,0.00011231,2]
[351331012,1738516261314,-500.0,0.00011231,2]
[351331013,1738516261328,-593.96637805,0.00011231,2]
[351331014,1738516261339,-500.0,0.00011231,2]
[351331015,1738516261352,-509.58813427,0.00011231,2]
[351331016,1738516261367,-1427.71,0.00011231,2]
[351331017,1738516261378,-500.0,0.00011231,2]
[351331018,1738516261388,-500.0,0.00011231,2]
[351331019,1738516261399,-500.0,0.00011231,2]
[351331020,1738516261410,-500.0,0.00011231,2]
[351331021,1738516261421,-513.70017732,0.00011231,2]
[351331022,1738516261432,-500.0,0.00011231,2]
[351331023,1738516261443,-1604.84,0.00011231,2]
[351331024,1738516261454,-500.0,0.00011231,2]
[351331025,1738516261469,-500.0,0.00011231,2]
[351331026,1738516261483,-500.0,0.00011231,2]
[351331027,1738516261493,-500.0,0.00011231,2]
[351331028,1738516261503,-500.0,0.00011231,2]
[351331029,1738516261513,-1584.96,0.00011231,2]
[351331030,1738516261522,-500.0,0.00011231,2]
[351331031,1738516261532,-500.0,0.00011231,2]
[351331032,1738516261541,-500.0,0.00011231,2]
[351331033,1738516261550,-876.74,0.00011231,2]
[351331034,1738516261559,-569.44,0.00011231,2]
[351331035,1738516261568,-514.44906822,0.00011231,2]
[351331036,1738516261577,-568.65,0.00011231,2]
[351331037,1738516261587,-500.0,0.00011231,2]
[351331038,1738516261596,-716.72,0.00011231,2]
[351331039,1738516261606,-500.0,0.00011231,2]
[351331040,1738516261618,-500.0,0.00011231,2]
[351331041,1738516261627,-500.0,0.00011231,2]
[351331042,1738516261637,-500.0,0.00011231,2]
[351331043,1738516261646,-558.21402769,0.00011231,2]
[351331044,1738516261655,-500.0,0.00011231,2]
[351331045,1738516261664,-648.71,0.00011231,2]
[351331046,1738516261674,-500.0,0.00011231,2]
[351331047,1738516261682,-500.0,0.00011231,2]
[351331048,1738516261692,-500.0,0.00011231,2]
[351331049,1738516261702,-500.0,0.00011231,2]
[351331050,1738516261713,-500.0,0.00011231,2]
[351331051,1738516261728,-2106.98,0.00011231,2]
[351331052,1738516261737,-500.0,0.00011231,2]
[351331053,1738516261747,-500.0,0.00011231,2]
[351331054,1738516261756,-986.39,0.00011231,2]
[351331055,1738516261766,-500.0,0.00011231,2]
[351331056,1738516261776,-500.0,0.00011231,2]
[351331057,1738516261788,-500.0,0.00011231,2]
[351331058,1738516261798,-1832.2,0.00011231,2]
[351331059,1738516261808,-500.0,0.00011231,2]
[351331060,1738516261818,-500.0,0.00011231,2]
[351331061,1738516261827,-500.0,0.00011231,2]
[351331062,1738516261837,-500.0,0.00011231,2]
[351331063,1738516261846,-500.0,0.00011231,2]
[351331064,1738516261856,-500.0,0.00011231,2]
[351331065,1738516261865,-500.0,0.00011231,2]
[351331066,1738516261874,-500.0,0.00011231,2]
[351331067,1738516261884,-500.0,0.00011231,2]
[351331068,1738516261894,-212.7812745,0.00011231,2]
[351331069,1738516261905,-500.0,0.00011231,2]
[351331070,1738516261916,-1788.45,0.00011231,2]
[351331071,1738516261926,-500.0,0.00011231,2]
[351331072,1738516261936,-500.0,0.00011231,2]
[351331073,1738516261945,-500.0,0.00011231,2]
[351331074,1738516261955,-593.9,0.00011231,2]
[351331075,1738516261969,-500.0,0.00011231,2]
[351331076,1738516261979,-500.0,0.00011231,2]
[351331077,1738516261990,-500.0,0.00011231,2]
[351331078,1738516262002,-500.0,0.00011231,2]
[351331079,1738516262011,-500.0,0.00011231,2]
[351331080,1738516262021,-836.62,0.00011231,2]
[351331081,1738516262031,-500.0,0.00011231,2]
[351331082,1738516262041,-500.0,0.00011231,2]
[351331083,1738516262051,-500.0,0.00011231,2]
[351331084,1738516262061,-500.0,0.00011231,2]
[351331085,1738516262074,-500.0,0.00011231,2]
[351331086,1738516262211,-500.0,0.00011231,2]
[351331087,1738516262226,-500.0,0.00011231,2]
[351331088,1738516262235,-1413.27,0.00011231,2]
[351331089,1738516262245,-528.25893125,0.00011231,2]
[351331090,1738516262256,-500.0,0.00011231,2]
[351331091,1738516262266,-500.0,0.00011231,2]
[351331092,1738516262276,-500.0,0.00011231,2]
[351331093,1738516262286,-500.0,0.00011231,2]
[351331094,1738516262296,-500.0,0.00011231,2]
[351331095,1738516262307,-500.0,0.00011231,2]
[351331096,1738516262317,-1365.43,0.00011231,2]
[351331097,1738516262327,-500.0,0.00011231,2]
[351331098,1738516262336,-500.0,0.00011231,2]
[351331099,1738516262346,-500.0,0.00011231,2]
[351331100,1738516262356,-500.0,0.00011231,2]
[351331101,1738516262367,-500.0,0.00011231,2]
[351331102,1738516262377,-500.0,0.00011231,2]
[351331103,1738516262387,-730.63,0.00011231,2]
[351331104,1738516262398,-500.0,0.00011231,2]
[351331105,1738516262408,-500.0,0.00011231,2]
[351331106,1738516262418,-500.0,0.00011231,2]
[351331107,1738516262428,-769.72,0.00011231,2]
[351331108,1738516262437,-500.0,0.00011231,2]
[351331109,1738516262447,-500.0,0.00011231,2]
[351331110,1738516262457,-500.0,0.00011231,2]
[351331111,1738516262470,-500.0,0.00011231,2]
[351331112,1738516262480,-500.0,0.00011231,2]
[351331113,1738516262489,-500.0,0.00011231,2]
[351331114,1738516262498,-500.0,0.00011231,2]
[351331115,1738516262508,-503.22627392,0.00011231,2]
[351331116,1738516262517,-500.0,0.00011231,2]
[351331117,1738516262528,-662.11,0.00011231,2]
[351331118,1738516262538,-500.0,0.00011231,2]
[351331119,1738516262548,-500.0,0.00011231,2]
[351331120,1738516262558,-500.0,0.00011231,2]
[351331121,1738516262567,-500.0,0.00011231,2]
[351331122,1738516262577,-500.0,0.00011231,2]
[351331123,1738516262586,-500.0,0.00011231,2]
[351331124,1738516262595,-500.0,0.00011231,2]
[351331125,1738516262605,-500.0,0.00011231,2]
[351331126,1738516262614,-500.0,0.00011231,2]
[351331127,1738516262624,-500.0,0.00011231,2]
[351331128,1738516262634,-500.0,0.00011231,2]
[351331129,1738516262644,-500.0,0.00011231,2]
[351331130,1738516262654,-500.0,0.00011231,2]
[351331131,1738516262664,-500.0,0.00011231,2]
[351331132,1738516262674,-500.0,0.00011231,2]
[351331133,1738516262684,-500.0,0.00011231,2]
[351331134,1738516262693,-500.0,0.00011231,2]
[351331135,1738516262703,-500.0,0.00011231,2]
[351331136,1738516262718,-500.0,0.00011231,2]
[351331137,1738516262728,-500.0,0.00011231,2]
[351331138,1738516262737,-500.0,0.00011231,2]
[351331139,1738516262747,-260.19890232,0.00011231,2]
[351331140,1738516262756,-500.0,0.00011231,2]
[351331141,1738516262765,-500.0,0.00011231,2]
[351331142,1738516262775,-500.0,0.00011231,2]
[351331143,1738516262784,-505.31269468,0.00011231,2]
[351331144,1738516262793,-500.0,0.00011231,2]
[351331145,1738516262802,-500.0,0.00011231,2]
[351331146,1738516262811,-500.0,0.00011231,2]
[351331147,1738516262819,-500.0,0.00011231,2]
[351331148,1738516262827,-549.23755026,0.00011231,2]
[351331149,1738516262836,-500.0,0.00011231,2]
[351331150,1738516262846,-500.0,0.00011231,2]
[351331151,1738516262855,-505.12605704,0.00011231,2]
[351331152,1738516262864,-500.0,0.00011231,2]
[351331153,1738516262874,-500.0,0.00011231,2]
[351331154,1738516262883,-5000.0,0.00011231,2]
[351331155,1738516262891,-500.0,0.00011231,2]
[351331156,1738516262900,-500.0,0.00011231,2]
[351331157,1738516262910,-500.0,0.00011231,2]
[351331158,1738516262919,-520.34511259,0.00011231,2]
[351331159,1738516262928,-500.0,0.00011231,2]
[351331160,1738516262937,-252.03416308,0.00011231,2]
[351331161,1738516262946,-500.0,0.00011231,2]
[351331162,1738516262955,-500.0,0.00011231,2]
[351331163,1738516262965,-500.0,0.00011231,2]
[351331164,1738516262975,-500.0,0.00011231,2]
[351331165,1738516262985,-506.09700906,0.00011231,2]
[351331166,1738516262995,-500.0,0.00011231,2]
[351331167,1738516263005,-500.0,0.00011231,2]
[351331168,1738516263017,-500.0,0.00011231,2]
[351331169,1738516263027,-500.0,0.00011231,2]
[351331170,1738516263038,-575.95594633,0.00011231,2]
[351331171,1738516263048,-500.0,0.00011231,2]
[351331172,1738516263058,-500.0,0.00011231,2]
[351331173,1738516263068,-500.0,0.00011231,2]
[351331174,1738516263079,-500.0,0.00011231,2]
[351331175,1738516263104,-500.0,0.00011231,2]
[351331176,1738516263122,-500.0,0.00011231,2]
[351331177,1738516263144,-500.0,0.00011231,2]
[351331178,1738516263164,-500.0,0.00011231,2]